[Event "December 12 Late 2023"]
[Site "https://www.chess.com"]
[Date "2023.12.12"]
[Round "10"]
[White "Zhigalko, Sergei"]
[Black "Sarana, Alexey"]
[Result "1-0"]
[Board "5"]
[TimeControl "180+1"]
[WhiteFideId "13502956"]
[BlackFideId "24133795"]
[WhiteElo "2963"]
[BlackElo "3050"]
[WhiteTeam "BLR"]
[BlackTeam "SRB"]
[WhiteClock "0:00:21"]
[BlackClock "0:00:05"]

1. e4 {[%clk 0:03:00]}  c5 {[%clk 0:02:59]} 2. c3 {[%clk 0:02:58]}  d5 {[%clk 0:02:59]} 3. exd5 {[%clk 0:02:58]}  Qxd5 {[%clk 0:03:00]} 4. d4 {[%clk 0:02:59]}  Nc6 {[%clk 0:03:00]} 5. Nf3 {[%clk 0:03:00]}  Bf5 {[%clk 0:03:01]} 6. Be3 {[%clk 0:02:58]}  Nf6 {[%clk 0:03:01]} 7. Nbd2 {[%clk 0:02:51]}  e6 {[%clk 0:02:56]} 8. Bc4 {[%clk 0:02:50]}  Qd7 {[%clk 0:02:53]} 9. dxc5 {[%clk 0:02:50]}  Ng4 {[%clk 0:02:49]} 10. Qe2 {[%clk 0:02:49]}  Nxe3 {[%clk 0:02:34]} 11. Qxe3 {[%clk 0:02:50]}  Be7 {[%clk 0:02:34]} 12. O-O {[%clk 0:02:44]}  O-O {[%clk 0:02:35]} 13. b4 {[%clk 0:02:44]}  Bf6 {[%clk 0:02:32]} 14. Nb3 {[%clk 0:02:38]}  Rfd8 {[%clk 0:02:26]} 15. Bb5 {[%clk 0:02:26]}  Qc7 {[%clk 0:02:08]} 16. Bxc6 {[%clk 0:02:09]}  bxc6 {[%clk 0:02:09]} 17. Rad1 {[%clk 0:02:09]}  e5 {[%clk 0:02:00]} 18. h3 {[%clk 0:02:04]}  h6 {[%clk 0:01:55]} 19. Rfe1 {[%clk 0:02:04]}  e4 {[%clk 0:01:20]} 20. Nfd4 {[%clk 0:01:44]}  Bg6 {[%clk 0:01:20]} 21. Nd2 {[%clk 0:01:29]}  Bg5 {[%clk 0:01:01]} 22. Qe2 {[%clk 0:01:26]}  Re8 {[%clk 0:01:00]} 23. Nc4 {[%clk 0:01:24]}  Bf4 {[%clk 0:01:00]} 24. Qg4 {[%clk 0:01:11]}  h5 {[%clk 0:00:56]} 25. Qh4 {[%clk 0:01:11]}  Rad8 {[%clk 0:00:52]} 26. Ne2 {[%clk 0:00:55]}  Bh6 {[%clk 0:00:29]} 27. Nd6 {[%clk 0:00:55]}  Re6 {[%clk 0:00:29]} 28. Nxf7 {[%clk 0:00:47]}  Qxf7 {[%clk 0:00:16]} 29. Qxd8+ {[%clk 0:00:45]}  Kh7 {[%clk 0:00:16]} 30. Rd7 {[%clk 0:00:41]}  Qf5 {[%clk 0:00:12]} 31. Nd4 {[%clk 0:00:41]}  Qe5 {[%clk 0:00:12]} 32. Nxe6 {[%clk 0:00:39]}  Qxe6 {[%clk 0:00:13]} 33. Rd6 {[%clk 0:00:33]}  Qf5 {[%clk 0:00:13]} 34. Qd7 {[%clk 0:00:28]}  Qg5 {[%clk 0:00:10]} 35. h4 {[%clk 0:00:21]}  Qxh4 {[%clk 0:00:06]} 36. Rxg6 {[%clk 0:00:22]}  Kxg6 {[%clk 0:00:07]} 37. Qxc6+ {[%clk 0:00:21]}  Kf7 {[%clk 0:00:05]} 38. Qd5+ {[%clk 0:00:21]} 1-0

[Event "December 12 Late 2023"]
[Site "https://www.chess.com"]
[Date "2023.12.12"]
[Round "10"]
[White "Durarbayli, Vasif"]
[Black "Yoo, Christopher Woojin"]
[Result "0-1"]
[Board "7"]
[TimeControl "180+1"]
[WhiteFideId "13402935"]
[BlackFideId "30909694"]
[WhiteElo "2923"]
[BlackElo "3009"]
[WhiteTeam "AZE"]
[BlackTeam "USA"]
[WhiteClock "0:00:00"]
[BlackClock "0:00:08"]

1. e4 {[%clk 0:03:00]}  c5 {[%clk 0:02:59]} 2. Nf3 {[%clk 0:03:01]}  d6 {[%clk 0:02:58]} 3. d4 {[%clk 0:03:01]}  cxd4 {[%clk 0:02:59]} 4. Nxd4 {[%clk 0:03:00]}  Nf6 {[%clk 0:03:00]} 5. Nc3 {[%clk 0:03:01]}  Nc6 {[%clk 0:03:00]} 6. f3 {[%clk 0:03:00]}  e5 {[%clk 0:02:55]} 7. Nb3 {[%clk 0:03:00]}  Be7 {[%clk 0:02:55]} 8. Be3 {[%clk 0:02:59]}  O-O {[%clk 0:02:56]} 9. Qd2 {[%clk 0:02:59]}  a5 {[%clk 0:02:52]} 10. Bb5 {[%clk 0:02:57]}  Be6 {[%clk 0:02:52]} 11. Rd1 {[%clk 0:02:44]}  Na7 {[%clk 0:02:33]} 12. Be2 {[%clk 0:02:32]}  Nc8 {[%clk 0:02:30]} 13. a3 {[%clk 0:02:25]}  a4 {[%clk 0:02:26]} 14. Nc1 {[%clk 0:02:24]}  Nb6 {[%clk 0:02:26]} 15. Bb5 {[%clk 0:02:13]}  d5 {[%clk 0:02:04]} 16. Bxb6 {[%clk 0:02:05]}  Qxb6 {[%clk 0:02:04]} 17. exd5 {[%clk 0:02:06]}  Rfd8 {[%clk 0:02:02]} 18. Bc4 {[%clk 0:02:05]}  Bf5 {[%clk 0:01:42]} 19. Nd3 {[%clk 0:01:43]}  e4 {[%clk 0:01:25]} 20. fxe4 {[%clk 0:01:40]}  Nxe4 {[%clk 0:01:24]} 21. Nxe4 {[%clk 0:01:40]}  Bxe4 {[%clk 0:01:25]} 22. Qf2 {[%clk 0:01:38]}  Qa5+ {[%clk 0:01:18]} 23. Rd2 {[%clk 0:01:14]}  Bg5 {[%clk 0:01:11]} 24. Nb4 {[%clk 0:01:00]}  Bxd2+ {[%clk 0:01:08]} 25. Qxd2 {[%clk 0:01:00]}  Rac8 {[%clk 0:01:07]} 26. Qd4 {[%clk 0:00:52]}  Qc5 {[%clk 0:00:50]} 27. Qxc5 {[%clk 0:00:34]}  Rxc5 {[%clk 0:00:51]} 28. Ba2 {[%clk 0:00:26]}  Bxc2 {[%clk 0:00:42]} 29. O-O {[%clk 0:00:26]}  Bg6 {[%clk 0:00:38]} 30. Rd1 {[%clk 0:00:23]}  Rd6 {[%clk 0:00:36]} 31. Kf2 {[%clk 0:00:21]}  Kf8 {[%clk 0:00:34]} 32. Ke3 {[%clk 0:00:21]}  Rc8 {[%clk 0:00:33]} 33. Kd4 {[%clk 0:00:20]}  f6 {[%clk 0:00:33]} 34. Bc4 {[%clk 0:00:18]}  Be8 {[%clk 0:00:28]} 35. Re1 {[%clk 0:00:17]}  Bd7 {[%clk 0:00:28]} 36. Bd3 {[%clk 0:00:17]}  g6 {[%clk 0:00:26]} 37. g3 {[%clk 0:00:13]}  Rb6 {[%clk 0:00:22]} 38. Rf1 {[%clk 0:00:13]}  Ke7 {[%clk 0:00:20]} 39. Rf4 {[%clk 0:00:13]}  g5 {[%clk 0:00:14]} 40. Rf2 {[%clk 0:00:12]}  h6 {[%clk 0:00:14]} 41. Re2+ {[%clk 0:00:09]}  Kd6 {[%clk 0:00:14]} 42. Rf2 {[%clk 0:00:10]}  Rf8 {[%clk 0:00:13]} 43. Bf5 {[%clk 0:00:09]}  Bxf5 {[%clk 0:00:12]} 44. Rxf5 {[%clk 0:00:10]}  Rb5 {[%clk 0:00:10]} 45. h4 {[%clk 0:00:06]}  Rc5 {[%clk 0:00:08]} 46. hxg5 {[%clk 0:00:06]}  hxg5 {[%clk 0:00:09]} 47. Nd3 {[%clk 0:00:04]}  Rc2 {[%clk 0:00:10]} 48. Nf2 {[%clk 0:00:05]}  Rd2+ {[%clk 0:00:08]} 49. Ke3 {[%clk 0:00:02]}  Rxd5 {[%clk 0:00:08]} 50. Ne4+ {[%clk 0:00:03]}  Ke6 {[%clk 0:00:07]} 51. Rf1 {[%clk 0:00:03]}  Re5 {[%clk 0:00:08]} 52. Kd4 {[%clk 0:00:00]}  Rd8+ {[%clk 0:00:08]} 0-1

[Event "December 12 Late 2023"]
[Site "https://www.chess.com"]
[Date "2023.12.12"]
[Round "10"]
[White "Kadric, Denis"]
[Black "Drygalov, Andrey"]
[Result "0-1"]
[Board "8"]
[TimeControl "180+1"]
[WhiteFideId "14403803"]
[BlackFideId "24171735"]
[WhiteElo "2823"]
[BlackElo "3005"]
[WhiteTeam "MNE"]
[BlackTeam "RUS"]
[WhiteClock "0:00:35"]
[BlackClock "0:00:34"]

1. e4 {[%clk 0:02:57]}  c5 {[%clk 0:03:00]} 2. Nc3 {[%clk 0:02:55]}  d6 {[%clk 0:02:59]} 3. f4 {[%clk 0:02:55]}  g6 {[%clk 0:02:59]} 4. Nf3 {[%clk 0:02:56]}  Bg7 {[%clk 0:02:59]} 5. Bb5+ {[%clk 0:02:56]}  Bd7 {[%clk 0:03:00]} 6. Bc4 {[%clk 0:02:56]}  Nc6 {[%clk 0:03:00]} 7. d3 {[%clk 0:02:57]}  Nd4 {[%clk 0:03:00]} 8. a4 {[%clk 0:02:52]}  e6 {[%clk 0:03:00]} 9. f5 {[%clk 0:02:50]}  exf5 {[%clk 0:02:41]} 10. O-O {[%clk 0:02:48]}  Ne7 {[%clk 0:02:40]} 11. Nxd4 {[%clk 0:02:42]}  cxd4 {[%clk 0:02:33]} 12. Nb5 {[%clk 0:02:42]}  Be5 {[%clk 0:02:14]} 13. c3 {[%clk 0:02:22]}  Bxb5 {[%clk 0:02:04]} 14. Bxb5+ {[%clk 0:02:21]}  Kf8 {[%clk 0:02:05]} 15. Bh6+ {[%clk 0:02:20]}  Kg8 {[%clk 0:02:04]} 16. Qb3 {[%clk 0:02:14]}  dxc3 {[%clk 0:01:37]} 17. bxc3 {[%clk 0:02:15]}  Qb6+ {[%clk 0:01:37]} 18. Kh1 {[%clk 0:01:17]}  a6 {[%clk 0:01:27]} 19. exf5 {[%clk 0:01:12]}  Nxf5 {[%clk 0:01:09]} 20. Rxf5 {[%clk 0:01:06]}  gxf5 {[%clk 0:01:09]} 21. Rf1 {[%clk 0:00:37]}  d5 {[%clk 0:00:36]} 22. Qxd5 {[%clk 0:00:37]}  Qxh6 {[%clk 0:00:34]} 23. Bc4 {[%clk 0:00:35]}  Qxh2# {[%clk 0:00:34]} 0-1

[Event "December 12 Late 2023"]
[Site "https://www.chess.com"]
[Date "2023.12.12"]
[Round "10"]
[White "Gabuzyan, Hovhannes"]
[Black "Pranav, V"]
[Result "1-0"]
[Board "12"]
[TimeControl "180+1"]
[WhiteFideId "13303732"]
[BlackFideId "25060783"]
[WhiteElo "2842"]
[BlackElo "3039"]
[WhiteTeam "ARM"]
[BlackTeam "IND"]
[WhiteClock "0:00:15"]
[BlackClock "0:00:00"]

1. e4 {[%clk 0:03:00]}  e5 {[%clk 0:02:59]} 2. Nf3 {[%clk 0:03:00]}  Nc6 {[%clk 0:03:00]} 3. Bb5 {[%clk 0:03:00]}  a6 {[%clk 0:03:00]} 4. Ba4 {[%clk 0:03:00]}  Nf6 {[%clk 0:03:01]} 5. O-O {[%clk 0:03:01]}  b5 {[%clk 0:02:59]} 6. Bb3 {[%clk 0:03:01]}  Bc5 {[%clk 0:02:59]} 7. d3 {[%clk 0:03:01]}  d6 {[%clk 0:02:59]} 8. a4 {[%clk 0:03:01]}  Rb8 {[%clk 0:02:59]} 9. axb5 {[%clk 0:03:00]}  axb5 {[%clk 0:03:00]} 10. Nc3 {[%clk 0:03:01]}  h6 {[%clk 0:02:59]} 11. Nd5 {[%clk 0:03:00]}  O-O {[%clk 0:02:54]} 12. h3 {[%clk 0:02:59]}  Be6 {[%clk 0:02:53]} 13. Be3 {[%clk 0:02:58]}  Bxd5 {[%clk 0:02:37]} 14. exd5 {[%clk 0:02:58]}  Bxe3 {[%clk 0:02:37]} 15. fxe3 {[%clk 0:02:54]}  Ne7 {[%clk 0:02:37]} 16. e4 {[%clk 0:02:52]}  Ng6 {[%clk 0:02:37]} 17. g3 {[%clk 0:02:43]}  Ra8 {[%clk 0:02:34]} 18. Rxa8 {[%clk 0:02:33]}  Qxa8 {[%clk 0:02:35]} 19. Qe2 {[%clk 0:02:32]}  c6 {[%clk 0:02:30]} 20. dxc6 {[%clk 0:02:30]}  Qxc6 {[%clk 0:02:31]} 21. Kh2 {[%clk 0:02:16]}  Re8 {[%clk 0:02:23]} 22. Ne1 {[%clk 0:02:09]}  Qd7 {[%clk 0:02:17]} 23. Ng2 {[%clk 0:02:08]}  d5 {[%clk 0:02:06]} 24. exd5 {[%clk 0:02:06]}  e4 {[%clk 0:01:59]} 25. dxe4 {[%clk 0:02:03]}  Nxe4 {[%clk 0:01:58]} 26. Qd3 {[%clk 0:01:34]}  Qd6 {[%clk 0:01:51]} 27. Nf4 {[%clk 0:01:21]}  Nxf4 {[%clk 0:01:07]} 28. Rxf4 {[%clk 0:01:22]}  Qe5 {[%clk 0:00:58]} 29. Qxb5 {[%clk 0:00:56]}  Nxg3 {[%clk 0:00:51]} 30. Kxg3 {[%clk 0:00:53]}  g5 {[%clk 0:00:49]} 31. Qa4 {[%clk 0:00:44]}  gxf4+ {[%clk 0:00:41]} 32. Qxf4 {[%clk 0:00:44]}  Qe1+ {[%clk 0:00:41]} 33. Kf3 {[%clk 0:00:35]}  Re5 {[%clk 0:00:35]} 34. Qg3+ {[%clk 0:00:32]}  Qxg3+ {[%clk 0:00:27]} 35. Kxg3 {[%clk 0:00:33]}  Kf8 {[%clk 0:00:27]} 36. Kf4 {[%clk 0:00:33]}  f6 {[%clk 0:00:24]} 37. c4 {[%clk 0:00:31]}  Re2 {[%clk 0:00:22]} 38. Bd1 {[%clk 0:00:20]}  Rxb2 {[%clk 0:00:19]} 39. Kf5 {[%clk 0:00:21]}  Rd2 {[%clk 0:00:06]} 40. Bf3 {[%clk 0:00:20]}  Ke7 {[%clk 0:00:06]} 41. c5 {[%clk 0:00:19]}  Rc2 {[%clk 0:00:04]} 42. d6+ {[%clk 0:00:18]}  Kd8 {[%clk 0:00:04]} 43. c6 {[%clk 0:00:17]}  Rd2 {[%clk 0:00:02]} 44. Ke6 {[%clk 0:00:17]}  Rd3 {[%clk 0:00:02]} 45. Be4 {[%clk 0:00:16]}  Re3 {[%clk 0:00:02]} 46. c7+ {[%clk 0:00:15]}  Kc8 {[%clk 0:00:01]} 47. Kd5 {[%clk 0:00:15]}  Kb7 {[%clk 0:00:01]} 48. Kd4+ {[%clk 0:00:14]}  Rxe4+ {[%clk 0:00:00]} 49. Kxe4 {[%clk 0:00:15]} 1-0

[Event "December 12 Late 2023"]
[Site "https://www.chess.com"]
[Date "2023.12.12"]
[Round "10"]
[White "Cordova, Emilio"]
[Black "Zwirs, Nico"]
[Result "0-1"]
[Board "13"]
[TimeControl "180+1"]
[WhiteFideId "3801497"]
[BlackFideId "1036432"]
[WhiteElo "2928"]
[BlackElo "2852"]
[WhiteTeam "PER"]
[BlackTeam "NED"]
[WhiteClock "0:00:05"]
[BlackClock "0:00:18"]

1. d4 {[%clk 0:03:00]}  d5 {[%clk 0:02:59]} 2. Nf3 {[%clk 0:03:00]}  Nf6 {[%clk 0:02:59]} 3. c4 {[%clk 0:03:01]}  e6 {[%clk 0:03:00]} 4. g3 {[%clk 0:03:01]}  dxc4 {[%clk 0:03:00]} 5. Qa4+ {[%clk 0:02:59]}  Nbd7 {[%clk 0:03:00]} 6. Qxc4 {[%clk 0:02:59]}  a6 {[%clk 0:03:00]} 7. Bg2 {[%clk 0:02:54]}  b5 {[%clk 0:03:00]} 8. Qc6 {[%clk 0:02:52]}  Rb8 {[%clk 0:03:00]} 9. Bf4 {[%clk 0:02:52]}  Bb7 {[%clk 0:02:58]} 10. Qxc7 {[%clk 0:02:44]}  Bb4+ {[%clk 0:02:58]} 11. Nbd2 {[%clk 0:02:36]}  Qxc7 {[%clk 0:02:58]} 12. Bxc7 {[%clk 0:02:36]}  Rc8 {[%clk 0:02:59]} 13. Bf4 {[%clk 0:02:31]}  Rc2 {[%clk 0:03:00]} 14. O-O {[%clk 0:02:29]}  Rxb2 {[%clk 0:03:00]} 15. Rab1 {[%clk 0:02:25]}  Rxb1 {[%clk 0:02:58]} 16. Rxb1 {[%clk 0:02:25]}  Nd5 {[%clk 0:02:42]} 17. Ne4 {[%clk 0:02:08]}  Nxf4 {[%clk 0:02:40]} 18. gxf4 {[%clk 0:02:08]}  Bxe4 {[%clk 0:02:29]} 19. Rxb4 {[%clk 0:02:07]}  Ke7 {[%clk 0:02:30]} 20. a4 {[%clk 0:02:04]}  Rc8 {[%clk 0:02:18]} 21. h3 {[%clk 0:01:49]}  Rc1+ {[%clk 0:02:15]} 22. Kh2 {[%clk 0:01:49]}  Rc4 {[%clk 0:01:56]} 23. Rxc4 {[%clk 0:01:48]}  bxc4 {[%clk 0:01:56]} 24. Ne1 {[%clk 0:01:49]}  Bb1 {[%clk 0:01:21]} 25. a5 {[%clk 0:01:38]}  Kd6 {[%clk 0:01:16]} 26. e4 {[%clk 0:01:23]}  Nb8 {[%clk 0:01:10]} 27. e5+ {[%clk 0:01:23]}  Kd7 {[%clk 0:00:38]} 28. d5 {[%clk 0:01:24]}  exd5 {[%clk 0:00:38]} 29. Bxd5 {[%clk 0:01:23]}  c3 {[%clk 0:00:38]} 30. Bxf7 {[%clk 0:01:19]}  Nc6 {[%clk 0:00:38]} 31. Bc4 {[%clk 0:01:15]}  Nb4 {[%clk 0:00:35]} 32. Kg3 {[%clk 0:01:11]}  c2 {[%clk 0:00:34]} 33. Nxc2 {[%clk 0:01:11]}  Bxc2 {[%clk 0:00:33]} 34. Kg4 {[%clk 0:01:11]}  Bd3 {[%clk 0:00:31]} 35. Bg8 {[%clk 0:01:07]}  Nc6 {[%clk 0:00:26]} 36. h4 {[%clk 0:01:02]}  h6 {[%clk 0:00:25]} 37. Bd5 {[%clk 0:00:56]}  Nxa5 {[%clk 0:00:24]} 38. f5 {[%clk 0:00:56]}  Nc4 {[%clk 0:00:22]} 39. Kf4 {[%clk 0:00:50]}  Ke7 {[%clk 0:00:20]} 40. Bc6 {[%clk 0:00:41]}  a5 {[%clk 0:00:20]} 41. h5 {[%clk 0:00:30]}  Bc2 {[%clk 0:00:20]} 42. Bb5 {[%clk 0:00:05]}  Nb6 {[%clk 0:00:18]} 0-1

[Event "December 12 Late 2023"]
[Site "https://www.chess.com"]
[Date "2023.12.12"]
[Round "10"]
[White "Gorovets, Andrey"]
[Black "Dyachuk, Artem"]
[Result "1-0"]
[Board "19"]
[TimeControl "180+1"]
[WhiteFideId "13504037"]
[BlackFideId "34107924"]
[WhiteElo "2849"]
[BlackElo "2702"]
[WhiteTeam "BLR"]
[BlackTeam "UKR"]
[WhiteClock "0:00:30"]
[BlackClock "0:00:00"]

1. Nf3 {[%clk 0:02:58]}  Nf6 {[%clk 0:02:58]} 2. g3 {[%clk 0:02:58]}  d5 {[%clk 0:02:57]} 3. Bg2 {[%clk 0:02:58]}  c6 {[%clk 0:02:57]} 4. O-O {[%clk 0:02:58]}  Bg4 {[%clk 0:02:56]} 5. h3 {[%clk 0:02:57]}  Bh5 {[%clk 0:02:55]} 6. c4 {[%clk 0:02:56]}  Nbd7 {[%clk 0:02:52]} 7. cxd5 {[%clk 0:02:52]}  cxd5 {[%clk 0:02:52]} 8. Qb3 {[%clk 0:02:52]}  Qc8 {[%clk 0:02:42]} 9. Nc3 {[%clk 0:02:48]}  e6 {[%clk 0:02:41]} 10. d3 {[%clk 0:02:44]}  Be7 {[%clk 0:02:36]} 11. Bf4 {[%clk 0:02:43]}  O-O {[%clk 0:02:36]} 12. Rfc1 {[%clk 0:02:43]}  Nc5 {[%clk 0:02:32]} 13. Qd1 {[%clk 0:02:38]}  Bxf3 {[%clk 0:02:25]} 14. Bxf3 {[%clk 0:02:38]}  Qd7 {[%clk 0:02:26]} 15. b4 {[%clk 0:02:35]}  Na6 {[%clk 0:02:25]} 16. a3 {[%clk 0:02:35]}  Bd6 {[%clk 0:02:25]} 17. Bd2 {[%clk 0:02:31]}  Nc7 {[%clk 0:02:23]} 18. Qa4 {[%clk 0:02:28]}  b5 {[%clk 0:02:18]} 19. Qa5 {[%clk 0:02:23]}  e5 {[%clk 0:02:15]} 20. Bg2 {[%clk 0:02:15]}  Rab8 {[%clk 0:02:12]} 21. a4 {[%clk 0:02:00]}  a6 {[%clk 0:02:06]} 22. axb5 {[%clk 0:01:56]}  axb5 {[%clk 0:02:07]} 23. Qa3 {[%clk 0:01:48]}  d4 {[%clk 0:01:43]} 24. Ne4 {[%clk 0:01:38]}  Nxe4 {[%clk 0:01:43]} 25. Bxe4 {[%clk 0:01:39]}  Qxh3 {[%clk 0:01:39]} 26. Rc6 {[%clk 0:01:39]}  Qd7 {[%clk 0:01:35]} 27. Qc1 {[%clk 0:01:35]}  Ne6 {[%clk 0:01:17]} 28. Raa6 {[%clk 0:01:33]}  Be7 {[%clk 0:01:16]} 29. Bf5 {[%clk 0:01:27]}  Rfc8 {[%clk 0:01:05]} 30. Bxe6 {[%clk 0:01:26]}  fxe6 {[%clk 0:01:02]} 31. f3 {[%clk 0:01:22]}  Bf6 {[%clk 0:00:48]} 32. Kg2 {[%clk 0:01:18]}  Qb7 {[%clk 0:00:42]} 33. Qc5 {[%clk 0:01:12]}  Qxa6 {[%clk 0:00:30]} 34. Rxa6 {[%clk 0:01:09]}  Rxc5 {[%clk 0:00:31]} 35. bxc5 {[%clk 0:01:10]}  b4 {[%clk 0:00:26]} 36. Rb6 {[%clk 0:01:08]}  Ra8 {[%clk 0:00:20]} 37. Bxb4 {[%clk 0:01:02]}  Ra2 {[%clk 0:00:20]} 38. Kf2 {[%clk 0:00:58]}  Bg5 {[%clk 0:00:17]} 39. c6 {[%clk 0:00:51]}  Be3+ {[%clk 0:00:16]} 40. Kf1 {[%clk 0:00:52]}  Ra1+ {[%clk 0:00:15]} 41. Kg2 {[%clk 0:00:52]}  Rg1+ {[%clk 0:00:10]} 42. Kh2 {[%clk 0:00:51]}  Rc1 {[%clk 0:00:10]} 43. Bd6 {[%clk 0:00:47]}  Rc2 {[%clk 0:00:07]} 44. c7 {[%clk 0:00:40]}  Kf7 {[%clk 0:00:06]} 45. Rb8 {[%clk 0:00:35]}  Rxe2+ {[%clk 0:00:06]} 46. Kh3 {[%clk 0:00:34]}  Bg1 {[%clk 0:00:05]} 47. c8=Q {[%clk 0:00:29]}  Rh2+ {[%clk 0:00:04]} 48. Kg4 {[%clk 0:00:30]}  h5+ {[%clk 0:00:03]} 49. Kg5 {[%clk 0:00:30]}  Be3+ {[%clk 0:00:03]} 50. f4 {[%clk 0:00:31]}  Bxf4+ {[%clk 0:00:03]} 51. gxf4 {[%clk 0:00:31]}  Rg2+ {[%clk 0:00:04]} 52. Kxh5 {[%clk 0:00:30]}  Rh2+ {[%clk 0:00:00]} 53. Kg4 {[%clk 0:00:30]} 1-0

[Event "December 12 Late 2023"]
[Site "https://www.chess.com"]
[Date "2023.12.12"]
[Round "10"]
[White "Holt, Conrad"]
[Black "Goryachkina, Aleksandra"]
[Result "1-0"]
[Board "21"]
[TimeControl "180+1"]
[WhiteFideId "2034387"]
[BlackFideId "4147103"]
[WhiteElo "2800"]
[BlackElo "2670"]
[WhiteTeam "USA"]
[BlackTeam "FID"]
[WhiteClock "0:00:05"]
[BlackClock "0:00:00"]

1. d4 {[%clk 0:03:00]}  Nf6 {[%clk 0:02:59]} 2. c4 {[%clk 0:03:01]}  e6 {[%clk 0:02:59]} 3. Nc3 {[%clk 0:03:01]}  Bb4 {[%clk 0:02:58]} 4. Qc2 {[%clk 0:03:01]}  O-O {[%clk 0:02:56]} 5. e4 {[%clk 0:03:01]}  d5 {[%clk 0:02:56]} 6. e5 {[%clk 0:03:02]}  Ne4 {[%clk 0:02:56]} 7. Bd3 {[%clk 0:03:02]}  c5 {[%clk 0:02:53]} 8. Nf3 {[%clk 0:03:02]}  cxd4 {[%clk 0:02:53]} 9. Nxd4 {[%clk 0:03:03]}  Nd7 {[%clk 0:02:53]} 10. Bf4 {[%clk 0:03:04]}  Qb6 {[%clk 0:02:46]} 11. Nb3 {[%clk 0:02:59]}  Qc7 {[%clk 0:02:42]} 12. O-O {[%clk 0:02:51]}  Nxe5 {[%clk 0:02:36]} 13. Nxe4 {[%clk 0:02:34]}  dxe4 {[%clk 0:02:30]} 14. Bxe4 {[%clk 0:02:34]}  f5 {[%clk 0:02:24]} 15. c5 {[%clk 0:02:27]}  fxe4 {[%clk 0:02:19]} 16. Bg3 {[%clk 0:02:27]}  Rf5 {[%clk 0:01:57]} 17. Qxe4 {[%clk 0:02:11]}  Bxc5 {[%clk 0:01:08]} 18. Rac1 {[%clk 0:02:09]}  Qc6 {[%clk 0:01:07]} 19. Nxc5 {[%clk 0:02:06]}  Qxe4 {[%clk 0:01:05]} 20. Nxe4 {[%clk 0:02:06]}  Nc6 {[%clk 0:01:05]} 21. Rfd1 {[%clk 0:01:57]}  Rd5 {[%clk 0:01:01]} 22. Nd6 {[%clk 0:01:23]}  Rxd1+ {[%clk 0:00:49]} 23. Rxd1 {[%clk 0:01:23]}  b6 {[%clk 0:00:49]} 24. Nxc8 {[%clk 0:00:49]}  Rxc8 {[%clk 0:00:49]} 25. Kf1 {[%clk 0:00:45]}  h6 {[%clk 0:00:38]} 26. Rd7 {[%clk 0:00:40]}  a5 {[%clk 0:00:13]} 27. Ke2 {[%clk 0:00:33]}  Nb4 {[%clk 0:00:10]} 28. Be5 {[%clk 0:00:24]}  Rc2+ {[%clk 0:00:09]} 29. Kf3 {[%clk 0:00:20]}  g5 {[%clk 0:00:09]} 30. a3 {[%clk 0:00:09]}  Nd5 {[%clk 0:00:04]} 31. Rg7+ {[%clk 0:00:08]}  Kf8 {[%clk 0:00:04]} 32. Rh7 {[%clk 0:00:09]}  g4+ {[%clk 0:00:04]} 33. Kg3 {[%clk 0:00:06]}  Ne7 {[%clk 0:00:00]} 34. Bd6 {[%clk 0:00:05]} 1-0

[Event "December 12 Late 2023"]
[Site "https://www.chess.com"]
[Date "2023.12.12"]
[Round "10"]
[White "Yuan, Qingyu"]
[Black "Gubajdullin, Alexei"]
[Result "1-0"]
[Board "22"]
[TimeControl "180+1"]
[WhiteFideId "8609772"]
[BlackFideId "4141202"]
[WhiteElo "2794"]
[BlackElo "2644"]
[WhiteTeam "CHN"]
[BlackTeam "RUS"]
[WhiteClock "0:00:10"]
[BlackClock "0:00:02"]

1. e4 {[%clk 0:03:00]}  e5 {[%clk 0:02:59]} 2. Nf3 {[%clk 0:03:01]}  Nf6 {[%clk 0:02:59]} 3. Nxe5 {[%clk 0:03:01]}  d6 {[%clk 0:02:59]} 4. Nf3 {[%clk 0:03:01]}  Nxe4 {[%clk 0:02:59]} 5. d4 {[%clk 0:03:02]}  d5 {[%clk 0:03:00]} 6. Bd3 {[%clk 0:03:02]}  Nc6 {[%clk 0:03:00]} 7. O-O {[%clk 0:03:02]}  Be7 {[%clk 0:03:00]} 8. Nbd2 {[%clk 0:02:59]}  Nd6 {[%clk 0:02:55]} 9. c3 {[%clk 0:02:53]}  Bf5 {[%clk 0:02:53]} 10. Nb3 {[%clk 0:02:49]}  Bxd3 {[%clk 0:02:50]} 11. Qxd3 {[%clk 0:02:50]}  Ne4 {[%clk 0:02:50]} 12. Bf4 {[%clk 0:02:42]}  O-O {[%clk 0:02:48]} 13. Nbd2 {[%clk 0:02:36]}  f5 {[%clk 0:02:43]} 14. h3 {[%clk 0:02:31]}  g5 {[%clk 0:02:38]} 15. Bh2 {[%clk 0:02:30]}  Bd6 {[%clk 0:02:37]} 16. Ne5 {[%clk 0:02:14]}  Bxe5 {[%clk 0:02:29]} 17. dxe5 {[%clk 0:02:07]}  Nxd2 {[%clk 0:02:23]} 18. Qxd2 {[%clk 0:02:07]}  f4 {[%clk 0:02:23]} 19. Rfe1 {[%clk 0:02:03]}  Ne7 {[%clk 0:02:06]} 20. e6 {[%clk 0:01:46]}  Rf5 {[%clk 0:02:06]} 21. g4 {[%clk 0:01:28]}  Rf6 {[%clk 0:01:59]} 22. h4 {[%clk 0:01:28]}  h6 {[%clk 0:01:55]} 23. hxg5 {[%clk 0:01:25]}  hxg5 {[%clk 0:01:55]} 24. Re5 {[%clk 0:01:26]}  Rg6 {[%clk 0:01:55]} 25. Qd3 {[%clk 0:01:22]}  Qd6 {[%clk 0:01:48]} 26. Rae1 {[%clk 0:01:21]}  Kg7 {[%clk 0:01:44]} 27. Kg2 {[%clk 0:01:09]}  Rf8 {[%clk 0:01:30]} 28. f3 {[%clk 0:01:08]}  Rh8 {[%clk 0:01:18]} 29. Bg1 {[%clk 0:01:07]}  c5 {[%clk 0:01:15]} 30. b4 {[%clk 0:00:59]}  b6 {[%clk 0:01:14]} 31. a4 {[%clk 0:00:59]}  Rhh6 {[%clk 0:01:13]} 32. bxc5 {[%clk 0:00:43]}  bxc5 {[%clk 0:01:12]} 33. Qb5 {[%clk 0:00:41]}  d4 {[%clk 0:00:55]} 34. Rxc5 {[%clk 0:00:33]}  dxc3 {[%clk 0:00:44]} 35. Qc4 {[%clk 0:00:21]}  Rxe6 {[%clk 0:00:27]} 36. Qxc3+ {[%clk 0:00:19]}  Kf7 {[%clk 0:00:27]} 37. Rxg5 {[%clk 0:00:16]}  Rxe1 {[%clk 0:00:25]} 38. Qxe1 {[%clk 0:00:15]}  Re6 {[%clk 0:00:23]} 39. Qh4 {[%clk 0:00:15]}  Rh6 {[%clk 0:00:21]} 40. Rh5 {[%clk 0:00:14]}  Qd2+ {[%clk 0:00:19]} 41. Bf2 {[%clk 0:00:14]}  Rxh5 {[%clk 0:00:19]} 42. Qxh5+ {[%clk 0:00:14]}  Ke6 {[%clk 0:00:17]} 43. Qh6+ {[%clk 0:00:12]}  Kd7 {[%clk 0:00:17]} 44. Qa6 {[%clk 0:00:10]}  Nd5 {[%clk 0:00:15]} 45. Qxa7+ {[%clk 0:00:10]}  Ke6 {[%clk 0:00:15]} 46. Qa6+ {[%clk 0:00:09]}  Kf7 {[%clk 0:00:14]} 47. Qb7+ {[%clk 0:00:08]}  Ke6 {[%clk 0:00:14]} 48. Qc6+ {[%clk 0:00:08]}  Ke7 {[%clk 0:00:14]} 49. Qc5+ {[%clk 0:00:08]}  Ke6 {[%clk 0:00:13]} 50. Kh3 {[%clk 0:00:04]}  Ne3 {[%clk 0:00:13]} 51. Qc6+ {[%clk 0:00:04]}  Ke7 {[%clk 0:00:13]} 52. Qe4+ {[%clk 0:00:04]}  Kd7 {[%clk 0:00:12]} 53. Qh7+ {[%clk 0:00:03]}  Ke6 {[%clk 0:00:10]} 54. Qg6+ {[%clk 0:00:03]}  Kd7 {[%clk 0:00:10]} 55. Qf7+ {[%clk 0:00:04]}  Kc6 {[%clk 0:00:08]} 56. Qf6+ {[%clk 0:00:04]}  Kd5 {[%clk 0:00:07]} 57. Qd8+ {[%clk 0:00:03]}  Kc4 {[%clk 0:00:07]} 58. Qxd2 {[%clk 0:00:04]}  Nd5 {[%clk 0:00:07]} 59. Qe2+ {[%clk 0:00:05]}  Kb3 {[%clk 0:00:06]} 60. Qb5+ {[%clk 0:00:05]}  Ka3 {[%clk 0:00:06]} 61. Qxd5 {[%clk 0:00:06]}  Kxa4 {[%clk 0:00:06]} 62. g5 {[%clk 0:00:06]}  Ka3 {[%clk 0:00:05]} 63. g6 {[%clk 0:00:07]}  Kb2 {[%clk 0:00:05]} 64. g7 {[%clk 0:00:08]}  Kc2 {[%clk 0:00:06]} 65. g8=Q {[%clk 0:00:09]}  Kc1 {[%clk 0:00:07]} 66. Qc8+ {[%clk 0:00:09]}  Kb2 {[%clk 0:00:02]} 67. Qb5+ {[%clk 0:00:10]} 1-0